bitfinex-derivatives/quotes_SOLF0:USTF0_20241224
["timestamp","ask_amount","ask_price","bid_price","bid_amount"]
[1735026680952,29.1371153,191.62,191.59,2.6135]
[1735026681252,29.1371153,191.62,191.58,8.42951756]
[1735026681445,29.1371153,191.62,191.56,2.6139]
[1735026681641,138.44708303,191.65,191.57,8.42951756]
[1735026681642,9.95251756,191.65,191.57,8.42951756]
[1735026681851,8.42951756,191.63,191.57,8.42951756]
[1735026682446,11.04251756,191.63,191.57,11.04331756]
[1735026682646,8.42951756,191.63,191.54,3.14]
[1735026682846,8.42951756,191.61,191.54,11.56951756]
[1735026683445,8.42951756,191.59,191.54,3.14]
[1735026683952,8.42951756,191.59,191.52,8.42951756]
[1735026684947,8.42951756,191.57,191.5,11.56951756]
[1735026685447,11.04331756,191.57,191.51,2.6146]
[1735026685653,8.42951756,191.57,191.51,2.6146]
[1735026686050,8.42951756,191.59,191.54,2.6142]
[1735026687353,8.42951756,191.59,191.52,8.42951756]
[1735026687750,3.14,191.64,191.52,8.42951756]
[1735026687950,8.42951756,191.6,191.52,8.42951756]
[1735026688149,8.42951756,191.58,191.52,8.42951756]
[1735026688352,11.04331756,191.58,191.52,11.04391756]
[1735026688953,8.42951756,191.58,191.5,8.42951756]
[1735026689149,8.42951756,191.56,191.48,8.42951756]
[1735026690054,8.42951756,191.54,191.47,3.14]
[1735026690557,2.6148,191.51,191.47,3.14]
[1735026693255,8.42951756,191.54,191.47,3.14]
[1735026693556,2.6145,191.52,191.47,2.6152]
[1735026694153,8.42951756,191.54,191.46,8.42951756]
[1735026694358,11.04431756,191.5,191.45,2.6154]
[1735026694759,8.42951756,191.52,191.44,8.42951756]
[1735026695955,8.42951756,191.5,191.44,8.42951756]
[1735026696151,2.615,191.49,191.44,2.6155]
[1735026696351,8.42951756,191.48,191.41,3.12]
[1735026696551,8.42951756,191.48,191.4,3.12]
[1735026696755,2.6155,191.45,191.4,2.6161]
[1735026700661,2.6155,191.45,191.41,8.42951756]
[1735026701957,2.6154,191.47,191.41,11.04551756]
[1735026702162,4.6951,191.49,191.43,8.42951756]
[1735026702163,1.5751,191.49,191.43,8.42951756]
[1735026703459,4.1902,191.49,191.45,8.42951756]
[1735026703765,2.6151,191.49,191.45,8.42951756]
[1735026705064,2.6151,191.49,191.44,2.6156]
[1735026706162,2.6151,191.49,191.45,8.42951756]
[1735026707563,2.6148,191.51,191.47,8.42951756]
[1735026710667,29.1371153,191.61,191.47,8.42951756]
[1735026710863,2.6146,191.52,191.47,11.04471756]
[1735026711069,8.42951756,191.54,191.47,2.6152]
[1735026711769,2.6145,191.52,191.47,2.6152]
[1735026713167,8.42951756,191.54,191.47,2.6152]
[1735026713467,2.6147,191.51,191.47,2.6152]
[1735026714868,3.12,191.57,191.46,8.42951756]
[1735026715167,2.6143,191.54,191.49,2.6148]
[1735026716369,2.6143,191.54,191.5,2.6147]
[1735026721777,2.6144,191.53,191.49,2.6149]
[1735026722173,2.6142,191.55,191.51,2.6145]
[1735026722376,8.42951756,191.56,191.5,8.42951756]
[1735026722778,8.42951756,191.56,191.48,3.12]
[1735026723077,8.42951756,191.56,191.49,8.42951756]
[1735026723678,2.6144,191.54,191.5,2.6148]
[1735026724678,2.6143,191.55,191.49,8.42951756]
[1735026724871,2.6143,191.55,191.51,2.6148]
[1735026727976,8.42951756,191.56,191.44,4.696]
[1735026727977,8.42951756,191.54,191.44,3.194]
[1735026728176,8.42951756,191.48,191.37,1.5995]
[1735026728480,8.42951756,191.48,191.38,3.12]
[1735026728780,8.42951756,191.48,191.4,8.42951756]
[1735026729474,2.6154,191.47,191.42,2.616]
[1735026730076,2.6157,191.45,191.4,2.6163]
[1735026730281,2.6157,191.45,191.4,11.04581756]
[1735026731982,2.6157,191.45,191.4,2.6163]
[1735026732177,11.04531756,191.44,191.4,2.6163]
[1735026732385,8.42951756,191.44,191.38,14.16611756]
[1735026732986,8.42951756,191.44,191.38,11.04611756]
[1735026733480,2.616,191.43,191.38,11.04611756]
[1735026734486,2.6161,191.42,191.38,2.6166]
[1735026734681,4.8141,191.5,191.31,4.7222]
[1735026734682,8.42951756,191.4,191.31,4.7222]
[1735026734990,8.42951756,191.38,191.32,8.42951756]
[1735026736479,2.6167,191.37,191.32,11.04681756]
[1735026736880,8.42951756,191.41,191.31,3.12]
[1735026737085,2.6164,191.4,191.34,2.6172]
[1735026737280,2.6164,191.4,191.34,11.04671756]
[1735026737487,11.04611756,191.39,191.34,2.6172]
[1735026737682,8.42951756,191.39,191.33,8.42951756]
[1735026737882,8.42951756,191.39,191.31,3.12]
[1735026738082,2.617,191.36,191.31,11.54951756]
[1735026738285,2.617,191.36,191.31,14.16701756]
[1735026738576,2.617,191.36,191.33,8.42951756]
[1735026741583,2.6166,191.39,191.34,2.6171]
[1735026742690,11.04611756,191.39,191.34,2.6171]
[1735026747495,2.6166,191.38,191.33,11.04681756]
[1735026751699,2.6168,191.37,191.33,8.42951756]
[1735026751899,2.6168,191.37,191.32,2.6174]
[1735026753802,2.6171,191.35,191.31,14.16701756]
[1735026754307,8.42951756,191.39,191.33,8.42951756]
[1735026755401,2.6169,191.37,191.33,11.04671756]
[1735026755607,7.28427882,191.49,191.35,8.42951756]
[1735026755806,8.42951756,191.43,191.35,8.42951756]
[1735026756001,2.6162,191.42,191.35,8.42951756]
[1735026756201,8.42951756,191.43,191.37,8.42951756]
[1735026756598,8.42951756,191.45,191.37,8.42951756]
[1735026757506,2.616,191.43,191.38,2.6165]
[1735026759412,2.6161,191.42,191.38,2.6165]
[1735026760614,2.6161,191.42,191.37,8.42951756]
[1735026760913,2.6161,191.42,191.37,11.04621756]
[1735026761313,2.6161,191.42,191.38,2.6166]
[1735026765012,2.6161,191.42,191.35,8.42951756]
[1735026765212,2.6162,191.41,191.37,2.6167]
[1735026766722,2.6161,191.42,191.37,2.6167]
[1735026771221,2.6163,191.41,191.37,2.6167]
[1735026772529,2.6164,191.4,191.36,2.6169]
[1735026773928,7.28427882,191.45,191.37,8.42951756]
[1735026774129,2.6161,191.42,191.37,11.04611756]
[1735026777330,2.6161,191.42,191.37,2.6166]
[1735026778325,2.6161,191.42,191.35,8.42951756]
[1735026778528,2.6161,191.42,191.38,2.6166]
[1735026780826,8.42951756,191.41,191.35,3.12]
[1735026781027,8.42951756,191.41,191.33,8.42951756]
[1735026782535,2.6165,191.39,191.35,2.617]
[1735026783733,2.6163,191.4,191.35,8.42951756]
[1735026783934,8.42951756,191.43,191.35,8.42951756]
[1735026784634,2.6162,191.42,191.37,2.6166]
[1735026784841,8.42951756,191.43,191.37,2.6166]
[1735026785631,2.6161,191.42,191.38,2.6165]
[1735026789837,2.6161,191.42,191.37,8.42951756]
[1735026789838,8.42951756,191.45,191.37,8.42951756]
[1735026790041,33.8481153,191.48,191.39,8.42951756]
[1735026790231,8.42951756,191.47,191.39,8.42951756]
[1735026790431,2.6156,191.46,191.41,8.42951756]
[1735026791031,2.6153,191.48,191.41,8.42951756]
[1735026792341,11.04461756,191.49,191.41,8.42951756]
[1735026793343,8.42951756,191.49,191.41,8.42951756]
[1735026793544,8.42951756,191.47,191.41,8.42951756]
[1735026793744,8.42951756,191.47,191.39,8.42951756]
[1735026794045,2.6156,191.46,191.41,2.6161]
[1735026794344,8.42951756,191.47,191.41,2.6161]
[1735026795540,2.6157,191.45,191.41,2.6161]
[1735026796142,11.04521756,191.45,191.41,2.6161]
[1735026796340,8.42951756,191.45,191.38,8.42951756]
[1735026797445,8.42951756,191.45,191.41,2.6162]
[1735026799147,2.6156,191.46,191.41,2.6162]
[1735026799342,2.6156,191.46,191.38,8.42951756]
[1735026799343,11.04511756,191.46,191.42,2.616]
[1735026801544,2.6157,191.45,191.41,2.6162]
[1735026806049,8.42951756,191.46,191.43,2.6159]
[1735026809451,2.6157,191.45,191.41,2.6162]
[1735026812453,2.6159,191.43,191.39,2.6163]
[1735026818757,11.04531756,191.45,191.41,2.6161]
[1735026820358,2.6158,191.45,191.41,2.6161]
[1735026822259,2.6158,191.44,191.4,2.6163]
[1735026826966,2.6158,191.44,191.41,2.6162]
[1735026828968,11.04521756,191.45,191.41,2.6162]
[1735026834682,2.6157,191.45,191.41,2.6162]
[1735026835377,8.42951756,191.45,191.37,3.12]
[1735026836774,8.42951756,191.41,191.32,3.171]
[1735026837080,8.42951756,191.39,191.32,1.624]
[1735026837271,8.42951756,191.39,191.32,10.05351756]
[1735026837471,3.12,191.43,191.32,10.05351756]
[1735026837669,8.42951756,191.38,191.32,10.05351756]
[1735026838479,8.42951756,191.38,191.34,2.6171]
[1735026838480,11.04621756,191.38,191.34,2.6171]
[1735026839073,8.42951756,191.38,191.35,2.617]
[1735026839582,2.6165,191.39,191.35,2.617]
[1735026840181,2.6169,191.37,191.32,2.6174]
[1735026840377,8.42951756,191.4,191.29,87.2543668]
[1735026840583,8.42951756,191.4,191.34,8.42951756]
[1735026841174,11.04601756,191.4,191.35,2.6169]
[1735026842486,11.04601756,191.4,191.34,8.42951756]
[1735026842688,12.62261756,191.42,191.37,2.6166]
[1735026842984,11.04571756,191.42,191.37,2.6166]
[1735026843177,11.04541756,191.44,191.39,2.6164]
[1735026843377,8.42951756,191.44,191.39,2.6164]
[1735026844177,2.6157,191.45,191.4,2.6163]
[1735026844383,8.42951756,191.46,191.38,8.42951756]
[1735026844786,8.42951756,191.46,191.4,8.42951756]
[1735026845690,1.5802,191.47,191.4,8.42951756]
[1735026846591,2.6155,191.46,191.42,2.616]
[1735026847789,10.00971756,191.47,191.42,2.616]
[1735026848187,8.42951756,191.5,191.42,8.42951756]
[1735026849380,11.04461756,191.5,191.45,2.6155]
[1735026851381,8.42951756,191.5,191.46,2.6154]
[1735026851887,66.03669812,191.51,191.46,2.6154]
[1735026852086,8.42951756,191.5,191.46,2.6154]
[1735026852688,8.42951756,191.48,191.41,11.54951756]
[1735026852888,8.42951756,191.48,191.41,8.42951756]
[1735026853093,8.42951756,191.46,191.4,3.12]
[1735026853781,8.42951756,191.46,191.42,2.616]
[1735026854792,2.6154,191.47,191.42,2.616]
[1735026854996,11.04491756,191.47,191.42,2.616]
[1735026855493,2.6154,191.47,191.43,2.6159]
[1735026856688,2.6154,191.47,191.41,8.42951756]
[1735026858491,2.6154,191.47,191.43,2.6159]
[1735026862297,8.42951756,191.46,191.43,2.6159]
[1735026863308,8.42951756,191.46,191.4,3.12]
[1735026863495,11.04501756,191.46,191.42,2.616]
[1735026865997,2.6155,191.46,191.42,2.616]
[1735026866988,8.42951756,191.47,191.39,8.42951756]
[1735026867198,8.42951756,191.45,191.38,3.12]
[1735026867593,11.04541756,191.43,191.39,2.6165]
[1735026872298,8.42951756,191.43,191.36,8.42951756]
[1735026872495,8.42951756,191.43,191.38,2.6166]
[1735026873402,2.6162,191.41,191.38,2.6166]
[1735026875098,2.6161,191.42,191.38,2.6166]
[1735026898521,11.04571756,191.41,191.36,2.6168]
[1735026898824,8.42951756,191.39,191.36,2.6168]
[1735026900120,29.1371153,191.45,191.37,2.6166]
[1735026900428,8.42951756,191.42,191.37,2.6166]
[1735026901125,11.04571756,191.42,191.37,2.6166]
[1735026901924,11.04591756,191.4,191.36,2.6169]
[1735026903619,2.6165,191.39,191.35,2.617]
[1735026907526,7.28427882,191.44,191.34,3.12]
[1735026907726,8.42951756,191.42,191.34,11.54951756]
[1735026908329,8.42951756,191.42,191.38,2.6165]
[1735026909124,11.04551756,191.43,191.38,2.6165]
[1735026909730,11.04551756,191.43,191.39,2.6164]
[1735026926644,11.04551756,191.43,191.36,3.12]
[1735026926645,11.04551756,191.43,191.4,2.6163]
[1735026926846,8.42951756,191.46,191.39,8.42951756]
[1735026927349,8.42951756,191.46,191.43,2.6158]
[1735026931849,8.42951756,191.44,191.43,2.6158]
[1735026939260,8.42951756,191.44,191.39,3.12]
[1735026939461,8.42951756,191.44,191.41,2.6161]
[1735026942666,8.42951756,191.44,191.39,3.12]
[1735026942966,11.04541756,191.44,191.39,5.7364]
[1735026944360,8.42951756,191.44,191.39,3.12]
[1735026944568,8.42951756,191.44,191.41,2.6161]
[1735026947972,2.6156,191.46,191.41,2.6161]
[1735026948172,8.42951756,191.44,191.41,2.6161]
[1735026960079,11.04521756,191.45,191.41,2.6161]
[1735026961186,7.28427882,191.49,191.39,11.52951756]
[1735026961478,7.28427882,191.49,191.43,8.42951756]
[1735026961678,7.28427882,191.49,191.44,3.1]
[1735026962080,7.28427882,191.49,191.44,11.52951756]
[1735026962273,7.28427882,191.49,191.48,2.6152]
[1735026962978,13.15961756,191.52,191.48,2.6152]
[1735026963177,8.42951756,191.52,191.49,2.6151]
[1735026969283,8.42951756,191.52,191.45,8.42951756]
[1735026969483,8.42951756,191.52,191.47,2.6153]
[1735026972384,8.42951756,191.52,191.48,2.6152]
[1735026974688,1.23332732,191.55,191.45,8.42951756]
[1735026974887,8.42951756,191.54,191.51,2.6148]
[1735026976190,8.42951756,191.55,191.52,2.6147]
[1735026976782,11.04381756,191.55,191.51,2.6148]
[1735026995195,2.6146,191.53,191.49,2.615]
[1735026996995,2.6145,191.54,191.5,2.615]
[1735027003401,2.6145,191.54,191.51,2.6148]
[1735027006502,8.42951756,191.55,191.51,2.6148]
[1735027006709,11.04381756,191.55,191.52,2.6147]
[1735027008498,11.04381756,191.55,191.51,2.6148]
[1735027010514,4.5876,191.57,191.48,11.52951756]
[1735027010715,29.1371153,191.58,191.52,8.42951756]
[1735027011113,29.1371153,191.58,191.56,2.614]
[1735027011314,29.1371153,191.58,191.54,11.52951756]
[1735027012214,8.42951756,191.61,191.54,11.52951756]
[1735027012414,8.42951756,191.61,191.57,2.614]
[1735027018310,8.42951756,191.61,191.58,2.6139]
[1735027018917,7.28427882,191.67,191.58,2.6139]
[1735027019116,8.42951756,191.62,191.58,2.6139]
[1735027026425,33.7433153,191.68,191.58,2.6139]
[1735027026723,8.42951756,191.62,191.58,2.6139]
[1735027037836,8.42951756,191.62,191.57,2.614]
[1735027038133,8.42951756,191.6,191.52,11.52951756]
[1735027038329,8.42951756,191.58,191.51,3.1]
[1735027038627,8.42951756,191.58,191.51,11.52951756]
[1735027038828,8.42951756,191.58,191.53,2.6145]
[1735027041230,8.42951756,191.58,191.51,11.52951756]
[1735027042131,8.42951756,191.58,191.54,2.6144]
[1735027044332,3.1029,191.6,191.54,2.6144]
[1735027044534,8.42951756,191.59,191.54,2.6144]
[1735027054241,8.42951756,191.57,191.52,2.6147]
[1735027054437,8.42951756,191.55,191.49,3.1]
[1735027055530,8.42951756,191.55,191.5,2.6149]
[1735027059037,8.42951756,191.55,191.51,2.6147]
[1735027061243,8.42951756,191.53,191.49,5.715]
[1735027061439,8.42951756,191.51,191.42,3.1]
[1735027061638,10.38717882,191.6,191.42,3.1]
[1735027061639,8.42951756,191.48,191.42,11.52951756]
[1735027062143,8.42951756,191.49,191.44,2.6157]
[1735027062342,8.42951756,191.49,191.42,11.52951756]
[1735027062545,8.42951756,191.51,191.44,8.42951756]
[1735027062744,8.42951756,191.51,191.47,2.6154]
[1735027063146,11.56331756,191.52,191.47,2.6154]
[1735027064448,8.42951756,191.5,191.45,2.6155]
[1735027065148,8.42951756,191.5,191.44,2.6158]
[1735027067450,2.6151,191.49,191.44,2.6158]
[1735027068348,8.42951756,191.5,191.43,8.42951756]
[1735027068647,2.6151,191.49,191.45,2.6156]
[1735027069346,2.6151,191.49,191.44,2.6158]
[1735027070542,3.1338,191.52,191.45,8.42951756]
[1735027070748,11.56331756,191.52,191.45,8.42951756]
[1735027071052,1.5018,191.53,191.47,8.42951756]
[1735027071246,8.42951756,191.54,191.47,8.42951756]
[1735027071444,11.04391756,191.54,191.47,8.42951756]
[1735027072051,11.04391756,191.54,191.49,2.615]
[1735027073145,11.04391756,191.54,191.47,8.42951756]
[1735027073352,11.04391756,191.54,191.49,2.6151]
[1735027074548,2.6144,191.54,191.49,11.04461756]
[1735027075553,8.42951756,191.56,191.49,11.04461756]
[1735027075554,8.42951756,191.56,191.49,8.42951756]
[1735027075751,2.6143,191.55,191.51,2.6148]
[1735027076653,2.6143,191.55,191.5,2.6149]
[1735027082451,2.6144,191.54,191.5,2.6149]
[1735027090653,2.6143,191.55,191.51,2.6148]
[1735027094060,5.6609,191.57,191.52,2.6146]
[1735027094259,9.94011756,191.59,191.51,8.42951756]
[1735027095571,2.6139,191.58,191.54,2.6144]
[1735027100870,11.04361756,191.57,191.53,2.6145]
[1735027101162,8.42951756,191.57,191.49,8.42951756]
[1735027101964,2.6144,191.55,191.5,2.6148]
[1735027102466,8.42951756,191.55,191.49,3.08]
[1735027103470,2.6146,191.53,191.49,3.08]
[1735027103670,2.6146,191.53,191.49,5.6951]
[1735027105573,2.6146,191.53,191.49,3.08]
[1735027107674,2.6146,191.53,191.49,5.6951]
[1735027110377,8.42951756,191.55,191.49,3.08]
[1735027110584,11.04391756,191.55,191.5,2.6149]
[1735027110970,11.04391756,191.55,191.49,11.50951756]
[1735027111478,2.6144,191.55,191.49,11.50951756]
[1735027111679,8.42951756,191.57,191.49,11.50951756]
[1735027111989,11.04361756,191.57,191.51,8.42951756]
[1735027112779,11.04361756,191.57,191.52,2.6146]
[1735027114377,11.04361756,191.57,191.53,2.6146]
[1735027114580,4.1245,191.59,191.51,8.42951756]
[1735027114779,9.94011756,191.59,191.51,8.42951756]
[1735027114981,9.94011756,191.59,191.54,2.6143]
[1735027116069,2.6139,191.58,191.54,2.6143]
[1735027116276,9.94011756,191.59,191.52,2.6146]
[1735027116470,8.42951756,191.55,191.45,70.64213011]
[1735027116675,8.42951756,191.55,191.47,8.42951756]
[1735027116875,8.42951756,191.55,191.49,2.615]
[1735027117478,2.6146,191.54,191.5,2.6149]
[1735027137093,8.42951756,191.55,191.45,70.64213011]
[1735027137291,8.42951756,191.51,191.45,69.06333011]
[1735027137491,8.42951756,191.51,191.44,8.42951756]
[1735027138592,2.6151,191.49,191.45,2.6156]
[1735027141403,8.42951756,191.51,191.43,8.42951756]
[1735027141602,2.6153,191.48,191.42,3.08]
[1735027141798,8.42951756,191.49,191.42,3.08]
[1735027142201,8.42951756,191.47,191.4,3.08]
[1735027142401,8.42951756,191.45,191.37,8.42951756]
[1735027142797,8.42951756,191.43,191.37,2.6166]
[1735027143003,8.42951756,191.41,191.34,3.08]
[1735027143307,2.6165,191.4,191.34,5.697]
[1735027143897,2.6165,191.4,191.34,2.617]
[1735027144103,3.08,191.44,191.37,8.42951756]
[1735027144304,8.42951756,191.45,191.39,8.42951756]
[1735027144704,2.6155,191.46,191.39,8.42951756]
[1735027145304,2.6155,191.46,191.41,11.04561756]
[1735027145509,8.42951756,191.47,191.41,8.42951756]
[1735027145705,11.04491756,191.47,191.41,8.42951756]
[1735027146115,2.6153,191.48,191.41,8.42951756]
[1735027147413,2.6153,191.48,191.43,2.6159]
[1735027148113,1.5983,191.5,191.43,8.42951756]
[1735027148313,2.6149,191.51,191.46,2.6155]
[1735027158419,8.42951756,191.52,191.46,2.6155]
[1735027158620,2.615,191.5,191.46,2.6155]
[1735027170640,1.6103,191.53,191.44,8.42951756]
[1735027170842,8.42951756,191.54,191.46,8.42951756]
[1735027171737,2.6146,191.53,191.49,2.6151]
[1735027176844,11.04401756,191.54,191.5,2.6148]
[1735027177049,2.6145,191.54,191.5,2.6148]
[1735027190454,2.6145,191.54,191.48,11.50951756]
[1735027190659,2.6145,191.54,191.51,2.6148]
[1735027190861,2.6143,191.56,191.51,2.6148]
[1735027191161,8.42951756,191.57,191.53,2.6145]
[1735027192459,11.04351756,191.57,191.53,2.6145]
[1735027196265,11.04331756,191.59,191.5,8.42951756]
[1735027196762,11.04331756,191.59,191.54,2.6143]
[1735027199766,8.79017882,191.62,191.5,8.42951756]
[1735027199962,8.42951756,191.59,191.56,2.614]
[1735027200466,9.89767882,191.62,191.53,3.08]
[1735027200661,7.28427882,191.62,191.53,3.08]
[1735027200864,3.1223,191.64,191.53,3.08]
[1735027201361,2.6133,191.63,191.58,2.6138]
[1735027203869,3.1223,191.64,191.53,3.08]
[1735027205370,2.6134,191.62,191.58,2.6139]
[1735027205765,2.6133,191.63,191.59,2.6137]
[1735027205976,2.6133,191.63,191.53,3.08]
[1735027206366,2.6133,191.62,191.57,2.6139]
[1735027206567,29.04273188,191.7,191.53,3.08]
[1735027206772,1.5472,191.69,191.53,3.08]
[1735027208176,1.5472,191.69,191.58,2.6137]
[1735027208774,2.6134,191.62,191.58,2.6137]
[1735027209478,2.6138,191.59,191.55,5.6943]
[1735027210079,1.5472,191.69,191.49,4.5659]
[1735027210080,2.614,191.58,191.53,2.6144]
[1735027210277,2.614,191.58,191.51,3.08]
[1735027210476,3.17,191.64,191.51,3.08]
[1735027211377,1.5017,191.63,191.48,3.08]
[1735027211578,0.78413663,191.62,191.48,3.08]
[1735027211781,1.5017,191.63,191.48,3.08]
[1735027212172,2.6137,191.6,191.56,2.6141]
[1735027212578,1.5017,191.63,191.56,2.6141]
[1735027212979,2.6136,191.6,191.56,10.99757505]
[1735027213781,2.6136,191.6,191.55,2.6143]
[1735027214081,2.614,191.58,191.52,8.38347505]
[1735027214283,8.38347505,191.59,191.51,8.38347505]
[1735027214472,8.38347505,191.59,191.5,2.6149]
[1735027214670,8.38347505,191.59,191.5,10.99837505]
[1735027214671,1.6172,191.58,191.5,10.99837505]
[1735027215282,1.6172,191.58,191.5,2.6149]
[1735027215481,1.6172,191.58,191.51,2.6148]
[1735027215482,2.6142,191.56,191.51,2.6148]
[1735027215683,1.6172,191.58,191.51,10.99827505]
[1735027216283,2.6142,191.56,191.52,2.6146]
[1735027216681,2.6142,191.56,191.53,8.38347505]
[1735027217380,4.2312,191.58,191.53,10.99797505]
[1735027218282,2.6142,191.56,191.52,8.38347505]
[1735027218674,1.6172,191.58,191.48,3.08]
[1735027219185,3.1416,191.58,191.51,8.38347505]
[1735027219379,11.52507505,191.58,191.51,8.38347505]
[1735027219685,11.52507505,191.58,191.47,3.08]
[1735027219890,2.6142,191.56,191.51,8.38347505]
[1735027220185,1.5017,191.63,191.53,8.38347505]
[1735027220381,8.38347505,191.61,191.53,8.38347505]
[1735027220984,6.1457,191.64,191.53,8.38347505]
[1735027221179,8.38347505,191.61,191.53,8.38347505]
[1735027221486,2.6139,191.58,191.53,10.99807505]
[1735027222282,8.38347505,191.61,191.53,10.99807505]
[1735027222586,8.38347505,191.61,191.53,8.38347505]
[1735027223080,2.6139,191.58,191.53,10.99797505]
[1735027223284,2.6139,191.58,191.53,8.38347505]
[1735027223583,2.6139,191.58,191.55,8.38347505]
[1735027224383,2.6138,191.59,191.55,8.38347505]
[1735027225281,8.38347505,191.61,191.55,8.38347505]
[1735027225485,8.38347505,191.61,191.53,8.38347505]
[1735027226586,2.614,191.57,191.53,8.38347505]
[1735027227281,2.6142,191.56,191.52,2.6146]
[1735027227491,2.6142,191.56,191.52,10.99807505]
[1735027228282,2.6143,191.55,191.5,5.695]
[1735027228486,2.6143,191.55,191.5,14.07847505]
[1735027229385,2.6145,191.54,191.49,2.6151]
[1735027229689,2.6145,191.54,191.49,10.99857505]
[1735027230584,8.38347505,191.55,191.49,8.38347505]
[1735027230885,8.38347505,191.55,191.5,2.6149]
[1735027230886,10.99777505,191.55,191.5,2.6149]
[1735027232085,2.6143,191.55,191.51,2.6148]
[1735027233388,2.6144,191.54,191.49,10.99847505]
[1735027235988,2.6144,191.54,191.5,2.6149]
[1735027236390,2.6143,191.55,191.49,8.38347505]
[1735027236591,8.38347505,191.56,191.51,2.6148]
[1735027237391,10.99777505,191.56,191.52,2.6147]
[1735027237587,2.6143,191.56,191.52,2.6147]
[1735027237787,13.14797505,191.58,191.51,8.38347505]
[1735027237984,2.614,191.57,191.53,2.6146]
[1735027240193,13.14797505,191.58,191.53,2.6146]
[1735027240386,15.76197505,191.58,191.53,2.6146]
[1735027242991,13.14797505,191.58,191.53,2.6146]
[1735027243191,2.614,191.57,191.53,2.6146]
[1735027246590,8.84678297,191.65,191.55,8.38347505]
[1735027246788,8.38347505,191.64,191.57,8.38347505]
[1735027247391,10.99697505,191.62,191.57,2.614]
[1735027247597,10.99697505,191.62,191.55,8.38347505]
[1735027247598,8.38347505,191.62,191.55,8.38347505]
[1735027247894,6.2257,191.68,191.57,8.38347505]
[1735027248093,8.38347505,191.65,191.57,8.38347505]
[1735027248595,2.6131,191.64,191.57,8.38347505]
[1735027249289,117.97875851,191.7,191.59,8.38347505]
[1735027249598,8.38347505,191.69,191.61,8.38347505]
[1735027250498,2.6125,191.68,191.63,2.6132]
[1735027251396,99.93190168,191.7,191.64,2.613]
[1735027253198,97.31950168,191.7,191.58,3.08]
[1735027253400,2.6125,191.68,191.62,10.99667505]
[1735027253593,88.93602663,191.7,191.62,8.38347505]
[1735027253800,97.31950168,191.7,191.62,8.38347505]
[1735027254501,2.6124,191.69,191.64,2.613]
[1735027264199,2.6126,191.68,191.64,2.613]
[1735027270808,4.40732289,191.72,191.66,8.38347505]
[1735027272404,8.38347505,191.71,191.55,1.5291]
[1735027272610,4.40732289,191.72,191.61,8.38347505]
[1735027272611,8.38347505,191.67,191.61,8.38347505]
[1735027272811,2.6132,191.63,191.59,10.99717505]
[1735027273114,8.38347505,191.65,191.59,8.38347505]
[1735027274413,2.6133,191.63,191.59,8.38347505]
[1735027275013,2.613,191.65,191.59,10.99707505]
[1735027275215,8.38347505,191.66,191.59,10.99707505]
[1735027275514,8.38347505,191.66,191.59,8.38347505]
[1735027276415,2.6131,191.64,191.6,2.6136]
[1735027276611,8.38347505,191.66,191.59,8.38347505]
[1735027276810,8.38347505,191.64,191.54,3.1209]
[1735027277010,2.6135,191.61,191.56,8.38347505]
[1735027278417,2.6135,191.61,191.56,10.99757505]
[1735027281622,2.6138,191.59,191.54,10.99787505]
[1735027282121,2.6138,191.59,191.55,2.6143]
[1735027283431,2.6136,191.6,191.55,2.6143]
[1735027284934,8.38347505,191.62,191.55,2.6143]
[1735027285433,8.38347505,191.62,191.54,8.38347505]
[1735027285734,2.6139,191.58,191.54,8.38347505]
[1735027287133,2.614,191.57,191.54,8.38347505]
[1735027288634,2.614,191.57,191.53,2.6144]
[1735027289829,2.6142,191.56,191.52,8.38347505]
[1735027290135,8.38347505,191.56,191.47,3.06]
[1735027290336,8.38347505,191.56,191.49,8.38347505]
[1735027290536,8.38347505,191.56,191.47,3.06]
[1735027290834,8.38347505,191.56,191.49,8.38347505]
[1735027291432,2.6146,191.53,191.49,10.99847505]
[1735027293537,2.6143,191.56,191.51,10.99827505]
[1735027294235,2.6143,191.56,191.51,2.6148]
[1735027294441,2.6143,191.56,191.51,10.99827505]
[1735027297645,10.99777505,191.56,191.51,2.6148]
[1735027298044,8.38347505,191.56,191.46,56.50229222]